[Event "Titled Tuesday Blitz March 14 Early 2023"]
[White "Necula, Iulian"]
[Black "Zaichenko, Daria"]
[WhiteFideId "1232380"]
[BlackFideId "4197453"]
[WhiteElo "1790"]
[BlackElo "2039"]
[Result "1/2-1/2"]
[Round "09"]
[TimeControl "180+2"]
[Date "2023.03.14"]
[WhiteClock "0:00:05"]
[BlackClock "0:00:06"]

1. d4 {[%clk 0:03:00]}  d5 {[%clk 0:02:59]} 2. Nc3 {[%clk 0:03:00]}  Bf5 {[%clk 0:02:57]} 3. Bf4 {[%clk 0:03:00]}  c6 {[%clk 0:02:55]} 4. e3 {[%clk 0:03:01]}  Nf6 {[%clk 0:02:52]} 5. f3 {[%clk 0:03:01]}  h5 {[%clk 0:02:51]} 6. h4 {[%clk 0:02:54]}  e6 {[%clk 0:02:49]} 7. Nge2 {[%clk 0:02:51]}  Bd6 {[%clk 0:02:42]} 8. g3 {[%clk 0:02:29]}  Qc7 {[%clk 0:02:40]} 9. Qd2 {[%clk 0:02:24]}  Nbd7 {[%clk 0:02:31]} 10. O-O-O {[%clk 0:02:21]}  O-O-O {[%clk 0:02:27]} 11. e4 {[%clk 0:02:19]}  Bxf4 {[%clk 0:02:22]} 12. Qxf4 {[%clk 0:02:03]}  Qxf4+ {[%clk 0:02:15]} 13. Nxf4 {[%clk 0:02:02]}  dxe4 {[%clk 0:02:15]} 14. fxe4 {[%clk 0:02:03]}  Nxe4 {[%clk 0:02:14]} 15. Nxe4 {[%clk 0:01:59]}  Bxe4 {[%clk 0:02:14]} 16. Rg1 {[%clk 0:01:59]}  Nf6 {[%clk 0:02:08]} 17. c3 {[%clk 0:01:57]}  Ng4 {[%clk 0:02:06]} 18. Re1 {[%clk 0:01:53]}  Bf5 {[%clk 0:02:01]} 19. Bd3 {[%clk 0:01:44]}  Bxd3 {[%clk 0:01:57]} 20. Nxd3 {[%clk 0:01:45]}  g6 {[%clk 0:01:39]} 21. Rgf1 {[%clk 0:01:44]}  Rhf8 {[%clk 0:01:36]} 22. Ne5 {[%clk 0:01:35]}  Nxe5 {[%clk 0:01:33]} 23. Rxe5 {[%clk 0:01:36]}  Kc7 {[%clk 0:01:31]} 24. a4 {[%clk 0:01:35]}  Kd6 {[%clk 0:01:29]} 25. Re2 {[%clk 0:01:30]}  Rde8 {[%clk 0:01:25]} 26. Ref2 {[%clk 0:01:30]}  f5 {[%clk 0:01:23]} 27. a5 {[%clk 0:01:27]}  c5 {[%clk 0:01:20]} 28. Rd2 {[%clk 0:01:22]}  Re7 {[%clk 0:01:10]} 29. Re1 {[%clk 0:01:18]}  cxd4 {[%clk 0:01:03]} 30. Rxd4+ {[%clk 0:01:17]}  Kc6 {[%clk 0:01:02]} 31. b4 {[%clk 0:01:14]}  b5 {[%clk 0:01:00]} 32. Re5 {[%clk 0:01:12]}  a6 {[%clk 0:00:57]} 33. Rc5+ {[%clk 0:01:11]}  Kb7 {[%clk 0:00:57]} 34. Rd6 {[%clk 0:01:11]}  e5 {[%clk 0:00:47]} 35. Rcc6 {[%clk 0:01:06]}  Ka8 {[%clk 0:00:45]} 36. Rxa6+ {[%clk 0:01:06]}  Ra7 {[%clk 0:00:46]} 37. Rxg6 {[%clk 0:00:58]}  f4 {[%clk 0:00:37]} 38. Raf6 {[%clk 0:00:51]}  Raf7 {[%clk 0:00:35]} 39. Rxf7 {[%clk 0:00:48]}  Rxf7 {[%clk 0:00:35]} 40. gxf4 {[%clk 0:00:48]}  exf4 {[%clk 0:00:28]} 41. Kd1 {[%clk 0:00:38]}  f3 {[%clk 0:00:28]} 42. Ke1 {[%clk 0:00:37]}  Rf4 {[%clk 0:00:28]} 43. Kf2 {[%clk 0:00:35]}  Rxh4 {[%clk 0:00:27]} 44. Kxf3 {[%clk 0:00:33]}  Rh3+ {[%clk 0:00:21]} 45. Rg3 {[%clk 0:00:32]}  Rh2 {[%clk 0:00:19]} 46. Rg5 {[%clk 0:00:29]}  h4 {[%clk 0:00:17]} 47. Rxb5 {[%clk 0:00:27]}  h3 {[%clk 0:00:16]} 48. Kg3 {[%clk 0:00:27]}  Rh1 {[%clk 0:00:17]} 49. Rh5 {[%clk 0:00:24]}  Rc1 {[%clk 0:00:16]} 50. Rxh3 {[%clk 0:00:20]}  Rxc3+ {[%clk 0:00:16]} 51. Kg2 {[%clk 0:00:20]}  Rc4 {[%clk 0:00:14]} 52. Rb3 {[%clk 0:00:20]}  Ka7 {[%clk 0:00:15]} 53. Kf2 {[%clk 0:00:20]}  Ka6 {[%clk 0:00:15]} 54. Ke2 {[%clk 0:00:20]}  Kb5 {[%clk 0:00:14]} 55. Kd3 {[%clk 0:00:19]}  Rc6 {[%clk 0:00:12]} 56. Rb2 {[%clk 0:00:16]}  Rc7 {[%clk 0:00:10]} 57. Kd4 {[%clk 0:00:14]}  Rc8 {[%clk 0:00:07]} 58. Kd5 {[%clk 0:00:14]}  Rd8+ {[%clk 0:00:08]} 59. Ke6 {[%clk 0:00:14]}  Rd4 {[%clk 0:00:07]} 60. Ke7 {[%clk 0:00:14]}  Rd3 {[%clk 0:00:07]} 61. Ke8 {[%clk 0:00:13]}  Rd6 {[%clk 0:00:06]} 62. Ke7 {[%clk 0:00:13]}  Rd4 {[%clk 0:00:05]} 63. Ke6 {[%clk 0:00:13]}  Rd8 {[%clk 0:00:05]} 64. Ke5 {[%clk 0:00:13]}  Rd7 {[%clk 0:00:05]} 65. Ke4 {[%clk 0:00:13]}  Rd6 {[%clk 0:00:04]} 66. Rb3 {[%clk 0:00:12]}  Rd7 {[%clk 0:00:04]} 67. Rd3 {[%clk 0:00:10]}  Re7+ {[%clk 0:00:03]} 68. Kd4 {[%clk 0:00:10]}  Rc7 {[%clk 0:00:03]} 69. Rc3 {[%clk 0:00:10]}  Rd7+ {[%clk 0:00:03]} 70. Ke3 {[%clk 0:00:09]}  Re7+ {[%clk 0:00:03]} 71. Kd2 {[%clk 0:00:09]}  Kxb4 {[%clk 0:00:03]} 72. Rc6 {[%clk 0:00:08]}  Kxa5 {[%clk 0:00:03]} 73. Kc3 {[%clk 0:00:08]}  Kb5 {[%clk 0:00:04]} 74. Rc8 {[%clk 0:00:07]}  Kb6 {[%clk 0:00:04]} 75. Rc4 {[%clk 0:00:06]}  Kb5 {[%clk 0:00:04]} 76. Rc8 {[%clk 0:00:06]}  Kb6 {[%clk 0:00:05]} 77. Rc4 {[%clk 0:00:05]}  Kb5 {[%clk 0:00:06]} 78. Rc8 {[%clk 0:00:05]} 1/2-1/2


[Site "https://www.chess.com"]

[Event "Titled Tuesday Blitz March 14 Early 2023"]
[White "Levitan, Caleb Levi"]
[Black "Comas Fabrego, Lluis"]
[WhiteFideId "14332620"]
[BlackFideId "2200325"]
[WhiteElo "1963"]
[BlackElo "2523"]
[Result "1-0"]
[Round "09"]
[TimeControl "180+2"]
[Date "2023.03.14"]
[WhiteClock "0:00:19"]
[BlackClock "0:00:11"]

1. b3 {[%clk 0:02:57]}  d5 {[%clk 0:02:58]} 2. Bb2 {[%clk 0:02:56]}  Bf5 {[%clk 0:02:59]} 3. g3 {[%clk 0:02:54]}  Nf6 {[%clk 0:02:58]} 4. Bg2 {[%clk 0:02:54]}  e6 {[%clk 0:02:58]} 5. d3 {[%clk 0:02:54]}  h6 {[%clk 0:02:54]} 6. Nf3 {[%clk 0:02:55]}  Be7 {[%clk 0:02:51]} 7. Nbd2 {[%clk 0:02:53]}  c6 {[%clk 0:02:45]} 8. O-O {[%clk 0:02:53]}  Nbd7 {[%clk 0:02:44]} 9. Re1 {[%clk 0:02:53]}  O-O {[%clk 0:02:34]} 10. e4 {[%clk 0:02:53]}  dxe4 {[%clk 0:02:28]} 11. dxe4 {[%clk 0:02:52]}  Bg4 {[%clk 0:02:28]} 12. h3 {[%clk 0:02:49]}  Bxf3 {[%clk 0:02:27]} 13. Nxf3 {[%clk 0:02:48]}  Bb4 {[%clk 0:02:24]} 14. c3 {[%clk 0:02:45]}  Bc5 {[%clk 0:02:08]} 15. Qe2 {[%clk 0:02:44]}  e5 {[%clk 0:01:53]} 16. Rad1 {[%clk 0:02:43]}  Qc7 {[%clk 0:01:53]} 17. b4 {[%clk 0:02:27]}  Be7 {[%clk 0:01:45]} 18. a3 {[%clk 0:02:22]}  a5 {[%clk 0:01:44]} 19. Nh4 {[%clk 0:02:06]}  g6 {[%clk 0:01:34]} 20. Bc1 {[%clk 0:02:03]}  Kh7 {[%clk 0:01:32]} 21. Qd2 {[%clk 0:01:40]}  g5 {[%clk 0:01:22]} 22. Nf5 {[%clk 0:01:39]}  Rad8 {[%clk 0:01:14]} 23. Nxe7 {[%clk 0:01:22]}  Nb6 {[%clk 0:01:10]} 24. Qe3 {[%clk 0:01:17]}  Nc4 {[%clk 0:00:59]} 25. Qc5 {[%clk 0:01:17]}  axb4 {[%clk 0:00:35]} 26. Qxc4 {[%clk 0:00:55]}  Qxe7 {[%clk 0:00:34]} 27. axb4 {[%clk 0:00:52]}  Ra8 {[%clk 0:00:29]} 28. Be3 {[%clk 0:00:50]}  Rfe8 {[%clk 0:00:27]} 29. Bc5 {[%clk 0:00:47]}  Qc7 {[%clk 0:00:26]} 30. Bd6 {[%clk 0:00:46]}  b5 {[%clk 0:00:19]} 31. Qb3 {[%clk 0:00:34]}  Qb7 {[%clk 0:00:18]} 32. c4 {[%clk 0:00:25]}  Kg6 {[%clk 0:00:17]} 33. c5 {[%clk 0:00:22]}  Ra4 {[%clk 0:00:15]} 34. Qf3 {[%clk 0:00:19]}  Rea8 {[%clk 0:00:12]} 35. Qf5+ {[%clk 0:00:19]}  Kg7 {[%clk 0:00:11]} 36. Bxe5 {[%clk 0:00:19]}  Qe7 {[%clk 0:00:11]} 37. Rd6 {[%clk 0:00:19]} 1-0


[Site "https://www.chess.com"]

[Event "Titled Tuesday Blitz March 14 Early 2023"]
[White "Lobanov, Sergei"]
[Black "Lazavik, Denis"]
[WhiteFideId "24183750"]
[BlackFideId "13515110"]
[WhiteElo "2489"]
[BlackElo "2560"]
[Result "0-1"]
[Round "10"]
[TimeControl "180+2"]
[Date "2023.03.14"]
[WhiteClock "0:00:04"]
[BlackClock "0:00:10"]

1. d4 {[%clk 0:03:00]}  f5 {[%clk 0:02:59]} 2. c4 {[%clk 0:02:58]}  Nf6 {[%clk 0:02:59]} 3. Nc3 {[%clk 0:02:58]}  d6 {[%clk 0:03:00]} 4. g3 {[%clk 0:02:57]}  g6 {[%clk 0:03:00]} 5. Bg2 {[%clk 0:02:58]}  Bg7 {[%clk 0:03:01]} 6. Nf3 {[%clk 0:02:57]}  O-O {[%clk 0:03:01]} 7. b3 {[%clk 0:02:57]}  c6 {[%clk 0:02:59]} 8. Bb2 {[%clk 0:02:57]}  Qc7 {[%clk 0:02:59]} 9. d5 {[%clk 0:02:52]}  Ne4 {[%clk 0:02:47]} 10. Rc1 {[%clk 0:02:49]}  Qa5 {[%clk 0:02:46]} 11. Qd3 {[%clk 0:02:33]}  Na6 {[%clk 0:02:38]} 12. O-O {[%clk 0:02:20]}  Nb4 {[%clk 0:02:33]} 13. Qe3 {[%clk 0:02:20]}  Nxa2 {[%clk 0:02:13]} 14. Nxe4 {[%clk 0:02:05]}  Bxb2 {[%clk 0:02:11]} 15. Neg5 {[%clk 0:02:03]}  Nxc1 {[%clk 0:01:53]} 16. Qxe7 {[%clk 0:01:55]}  Bg7 {[%clk 0:01:52]} 17. Rxc1 {[%clk 0:01:53]}  Qd8 {[%clk 0:01:49]} 18. Qe3 {[%clk 0:01:50]}  Re8 {[%clk 0:01:43]} 19. Qd2 {[%clk 0:01:49]}  c5 {[%clk 0:01:34]} 20. h4 {[%clk 0:01:48]}  Qe7 {[%clk 0:01:31]} 21. e3 {[%clk 0:01:46]}  Bd7 {[%clk 0:01:31]} 22. Ne6 {[%clk 0:01:42]}  Rac8 {[%clk 0:01:15]} 23. Nfg5 {[%clk 0:01:42]}  Bf6 {[%clk 0:01:13]} 24. Nh3 {[%clk 0:01:41]}  Be5 {[%clk 0:01:02]} 25. h5 {[%clk 0:01:39]}  gxh5 {[%clk 0:00:54]} 26. Qe2 {[%clk 0:01:20]}  Qf7 {[%clk 0:00:46]} 27. Bf3 {[%clk 0:01:15]}  Qf6 {[%clk 0:00:26]} 28. Bxh5 {[%clk 0:01:13]}  Re7 {[%clk 0:00:26]} 29. f4 {[%clk 0:01:07]}  Bb2 {[%clk 0:00:23]} 30. Rc2 {[%clk 0:01:07]}  Ba3 {[%clk 0:00:23]} 31. Ra2 {[%clk 0:00:50]}  Bb4 {[%clk 0:00:22]} 32. Rxa7 {[%clk 0:00:49]}  Bxe6 {[%clk 0:00:22]} 33. dxe6 {[%clk 0:00:49]}  Qxe6 {[%clk 0:00:23]} 34. Bf3 {[%clk 0:00:44]}  Qxe3+ {[%clk 0:00:21]} 35. Qxe3 {[%clk 0:00:44]}  Rxe3 {[%clk 0:00:22]} 36. Bd5+ {[%clk 0:00:44]}  Kh8 {[%clk 0:00:22]} 37. Kf2 {[%clk 0:00:28]}  Rce8 {[%clk 0:00:21]} 38. Ng5 {[%clk 0:00:20]}  Re2+ {[%clk 0:00:20]} 39. Kg1 {[%clk 0:00:18]}  Rb2 {[%clk 0:00:15]} 40. Ne6 {[%clk 0:00:16]}  Rb8 {[%clk 0:00:12]} 41. Bxb7 {[%clk 0:00:13]}  Rxb3 {[%clk 0:00:10]} 42. Kh2 {[%clk 0:00:11]}  Be1 {[%clk 0:00:09]} 43. Bd5 {[%clk 0:00:11]}  Bxg3+ {[%clk 0:00:09]} 44. Kg2 {[%clk 0:00:11]}  Bh4 {[%clk 0:00:10]} 45. Rf7 {[%clk 0:00:06]}  Rg3+ {[%clk 0:00:10]} 46. Kf1 {[%clk 0:00:04]}  Rb1+ {[%clk 0:00:10]} 47. Ke2 {[%clk 0:00:05]}  Rb2+ {[%clk 0:00:10]} 48. Kf1 {[%clk 0:00:05]}  Rg8 {[%clk 0:00:09]} 49. Rxf5 {[%clk 0:00:04]}  Rf2+ {[%clk 0:00:09]} 50. Ke1 {[%clk 0:00:04]}  Rg1# {[%clk 0:00:10]} 0-1


[Site "https://www.chess.com"]

[Event "Titled Tuesday Blitz March 14 Early 2023"]
[White "Martinez Alcantara, Jose Eduardo"]
[Black "Yu, Yangyi"]
[WhiteFideId "3805662"]
[BlackFideId "8603820"]
[WhiteElo "2712"]
[BlackElo "2783"]
[Result "1-0"]
[Round "10"]
[TimeControl "180+2"]
[Date "2023.03.14"]
[WhiteClock "0:00:15"]
[BlackClock "0:00:02"]

1. e4 {[%clk 0:03:00]}  c5 {[%clk 0:02:58]} 2. Nf3 {[%clk 0:03:00]}  d6 {[%clk 0:02:59]} 3. c3 {[%clk 0:03:00]}  Nf6 {[%clk 0:02:58]} 4. h3 {[%clk 0:03:01]}  Bd7 {[%clk 0:02:54]} 5. Bd3 {[%clk 0:02:59]}  Bc6 {[%clk 0:02:46]} 6. Qe2 {[%clk 0:02:59]}  Nbd7 {[%clk 0:02:39]} 7. O-O {[%clk 0:02:57]}  Ne5 {[%clk 0:02:37]} 8. Nxe5 {[%clk 0:02:55]}  dxe5 {[%clk 0:02:37]} 9. Bc2 {[%clk 0:02:56]}  e6 {[%clk 0:02:37]} 10. d3 {[%clk 0:02:56]}  Bd6 {[%clk 0:02:36]} 11. Nd2 {[%clk 0:02:56]}  O-O {[%clk 0:02:35]} 12. a4 {[%clk 0:02:55]}  b6 {[%clk 0:02:33]} 13. Nc4 {[%clk 0:02:54]}  Bc7 {[%clk 0:02:32]} 14. Bg5 {[%clk 0:02:54]}  h6 {[%clk 0:02:31]} 15. Bh4 {[%clk 0:02:55]}  g5 {[%clk 0:02:25]} 16. Bg3 {[%clk 0:02:52]}  Nd7 {[%clk 0:02:25]} 17. Rad1 {[%clk 0:02:45]}  Rc8 {[%clk 0:02:18]} 18. Rfe1 {[%clk 0:02:39]}  Qe7 {[%clk 0:02:17]} 19. Bb3 {[%clk 0:02:31]}  Kg7 {[%clk 0:02:15]} 20. f3 {[%clk 0:02:09]}  Rfd8 {[%clk 0:02:14]} 21. Kh1 {[%clk 0:02:06]}  f6 {[%clk 0:02:13]} 22. Ne3 {[%clk 0:02:06]}  Nf8 {[%clk 0:02:10]} 23. Bh2 {[%clk 0:02:06]}  Ng6 {[%clk 0:02:06]} 24. Qc2 {[%clk 0:02:06]}  Qe8 {[%clk 0:02:01]} 25. Ra1 {[%clk 0:02:00]}  a6 {[%clk 0:01:50]} 26. Bc4 {[%clk 0:01:59]}  b5 {[%clk 0:01:50]} 27. axb5 {[%clk 0:02:00]}  axb5 {[%clk 0:01:51]} 28. Bb3 {[%clk 0:02:00]}  Ra8 {[%clk 0:01:47]} 29. Rad1 {[%clk 0:01:59]}  Nf4 {[%clk 0:01:42]} 30. g3 {[%clk 0:01:45]}  Ng6 {[%clk 0:01:36]} 31. Qg2 {[%clk 0:01:41]}  Bb6 {[%clk 0:01:29]} 32. Bg1 {[%clk 0:01:41]}  Kh7 {[%clk 0:01:24]} 33. Bf2 {[%clk 0:01:35]}  Qe7 {[%clk 0:01:20]} 34. h4 {[%clk 0:01:34]}  gxh4 {[%clk 0:01:15]} 35. Qh3 {[%clk 0:01:34]}  hxg3 {[%clk 0:01:01]} 36. Ng4 {[%clk 0:01:11]}  Rh8 {[%clk 0:00:37]} 37. Be3 {[%clk 0:00:50]}  Nf4 {[%clk 0:00:28]} 38. Qxg3 {[%clk 0:00:50]}  h5 {[%clk 0:00:25]} 39. Qh4 {[%clk 0:00:48]}  Kg7 {[%clk 0:00:19]} 40. Nxe5 {[%clk 0:00:48]}  Ng6 {[%clk 0:00:16]} 41. Rg1 {[%clk 0:00:43]}  Be8 {[%clk 0:00:16]} 42. Nxg6 {[%clk 0:00:34]}  Bxg6 {[%clk 0:00:17]} 43. Qg3 {[%clk 0:00:31]}  Qe8 {[%clk 0:00:15]} 44. Bxe6 {[%clk 0:00:25]}  Kh7 {[%clk 0:00:14]} 45. Bf5 {[%clk 0:00:24]}  Rg8 {[%clk 0:00:14]} 46. Qh3 {[%clk 0:00:22]}  Bxf5 {[%clk 0:00:06]} 47. Qxf5+ {[%clk 0:00:23]}  Rg6 {[%clk 0:00:03]} 48. Qxh5+ {[%clk 0:00:21]}  Kg7 {[%clk 0:00:04]} 49. Bh6+ {[%clk 0:00:17]}  Kh7 {[%clk 0:00:02]} 50. Bf8+ {[%clk 0:00:16]}  Kg8 {[%clk 0:00:02]} 51. Rxg6+ {[%clk 0:00:16]}  Kf7 {[%clk 0:00:02]} 52. Rh6+ {[%clk 0:00:15]} 1-0


[Site "https://www.chess.com"]

[Event "Titled Tuesday Blitz March 14 Early 2023"]
[White "Bortnyk, Olexandr"]
[Black "Wei, Yi"]
[WhiteFideId "14120828"]
[BlackFideId "8603405"]
[WhiteElo "2734"]
[BlackElo "2686"]
[Result "1-0"]
[Round "10"]
[TimeControl "180+2"]
[Date "2023.03.14"]
[WhiteClock "0:00:35"]
[BlackClock "0:00:01"]

1. d4 {[%clk 0:03:00]}  Nf6 {[%clk 0:02:59]} 2. Nc3 {[%clk 0:03:01]}  d5 {[%clk 0:02:57]} 3. Bf4 {[%clk 0:03:01]}  e6 {[%clk 0:02:54]} 4. Nb5 {[%clk 0:03:00]}  Na6 {[%clk 0:02:51]} 5. e3 {[%clk 0:03:01]}  c6 {[%clk 0:02:50]} 6. Nc3 {[%clk 0:03:01]}  Bb4 {[%clk 0:02:50]} 7. Bxa6 {[%clk 0:03:01]}  bxa6 {[%clk 0:02:50]} 8. Ne2 {[%clk 0:03:01]}  a5 {[%clk 0:02:48]} 9. O-O {[%clk 0:03:01]}  Ba6 {[%clk 0:02:47]} 10. Re1 {[%clk 0:03:02]}  O-O {[%clk 0:02:44]} 11. a3 {[%clk 0:02:59]}  Be7 {[%clk 0:02:44]} 12. h3 {[%clk 0:02:55]}  c5 {[%clk 0:02:42]} 13. Na4 {[%clk 0:02:48]}  Nd7 {[%clk 0:02:38]} 14. b3 {[%clk 0:02:31]}  Rc8 {[%clk 0:02:32]} 15. c3 {[%clk 0:02:17]}  c4 {[%clk 0:02:12]} 16. b4 {[%clk 0:02:14]}  Bb5 {[%clk 0:01:51]} 17. Bh2 {[%clk 0:02:14]}  axb4 {[%clk 0:01:43]} 18. axb4 {[%clk 0:02:15]}  a5 {[%clk 0:01:43]} 19. bxa5 {[%clk 0:02:11]}  Qxa5 {[%clk 0:01:38]} 20. Nc5 {[%clk 0:02:07]}  Qd8 {[%clk 0:01:38]} 21. Nxd7 {[%clk 0:01:59]}  Qxd7 {[%clk 0:01:39]} 22. Nf4 {[%clk 0:01:52]}  g6 {[%clk 0:01:18]} 23. Qg4 {[%clk 0:01:46]}  Kh8 {[%clk 0:01:18]} 24. h4 {[%clk 0:01:35]}  Ba4 {[%clk 0:01:05]} 25. h5 {[%clk 0:01:19]}  g5 {[%clk 0:01:05]} 26. h6 {[%clk 0:01:01]}  f5 {[%clk 0:00:30]} 27. Qg3 {[%clk 0:01:02]}  Bb3 {[%clk 0:00:20]} 28. Nh5 {[%clk 0:00:55]}  Kg8 {[%clk 0:00:19]} 29. Qe5 {[%clk 0:00:50]}  Rf7 {[%clk 0:00:18]} 30. Ra6 {[%clk 0:00:49]}  Rc6 {[%clk 0:00:06]} 31. Rea1 {[%clk 0:00:46]}  Qe8 {[%clk 0:00:02]} 32. Ng7 {[%clk 0:00:41]}  Qd7 {[%clk 0:00:01]} 33. Ra7 {[%clk 0:00:35]}  Qd8 {[%clk 0:00:01]} 34. Nxe6 {[%clk 0:00:35]} 1-0


[Site "https://www.chess.com"]

[Event "Titled Tuesday Blitz March 14 Early 2023"]
[White "Caruana, Fabiano"]
[Black "Vallejo Pons, Francisco"]
[WhiteFideId "2020009"]
[BlackFideId "2205530"]
[WhiteElo "2818"]
[BlackElo "2589"]
[Result "1-0"]
[Round "10"]
[TimeControl "180+2"]
[Date "2023.03.14"]
[WhiteClock "0:00:13"]
[BlackClock "0:00:02"]

1. d4 {[%clk 0:03:00]}  e6 {[%clk 0:02:59]} 2. e4 {[%clk 0:02:59]}  d5 {[%clk 0:02:58]} 3. e5 {[%clk 0:02:59]}  c5 {[%clk 0:02:58]} 4. c3 {[%clk 0:03:00]}  Nc6 {[%clk 0:02:58]} 5. Nf3 {[%clk 0:03:00]}  a6 {[%clk 0:02:59]} 6. Bd3 {[%clk 0:02:59]}  Qb6 {[%clk 0:02:57]} 7. O-O {[%clk 0:02:57]}  cxd4 {[%clk 0:02:55]} 8. cxd4 {[%clk 0:02:57]}  Bd7 {[%clk 0:02:54]} 9. Be2 {[%clk 0:02:46]}  Nh6 {[%clk 0:02:37]} 10. Bxh6 {[%clk 0:02:12]}  Qxb2 {[%clk 0:02:18]} 11. Nbd2 {[%clk 0:01:36]}  gxh6 {[%clk 0:02:16]} 12. Rb1 {[%clk 0:01:36]}  Qxa2 {[%clk 0:02:07]} 13. Rxb7 {[%clk 0:01:36]}  Rb8 {[%clk 0:01:44]} 14. Rxb8+ {[%clk 0:01:29]}  Nxb8 {[%clk 0:01:45]} 15. Nb3 {[%clk 0:01:07]}  Nc6 {[%clk 0:01:26]} 16. Qd3 {[%clk 0:00:55]}  Nb4 {[%clk 0:01:23]} 17. Qe3 {[%clk 0:00:55]}  Qb2 {[%clk 0:00:45]} 18. Nc5 {[%clk 0:00:48]}  Bxc5 {[%clk 0:00:22]} 19. dxc5 {[%clk 0:00:49]}  Nc6 {[%clk 0:00:17]} 20. Bxa6 {[%clk 0:00:47]}  Rg8 {[%clk 0:00:15]} 21. Bd3 {[%clk 0:00:45]}  Qc3 {[%clk 0:00:07]} 22. Rc1 {[%clk 0:00:42]}  Qa3 {[%clk 0:00:06]} 23. Rb1 {[%clk 0:00:38]}  Ke7 {[%clk 0:00:05]} 24. h3 {[%clk 0:00:34]}  Nb4 {[%clk 0:00:03]} 25. c6 {[%clk 0:00:30]}  Nxc6 {[%clk 0:00:03]} 26. Rb7 {[%clk 0:00:22]}  Rb8 {[%clk 0:00:03]} 27. Rxb8 {[%clk 0:00:21]}  Nxb8 {[%clk 0:00:04]} 28. Qxh6 {[%clk 0:00:11]}  Qxd3 {[%clk 0:00:03]} 29. Qf6+ {[%clk 0:00:12]}  Ke8 {[%clk 0:00:02]} 30. Qh8+ {[%clk 0:00:13]}  Ke7 {[%clk 0:00:02]} 31. Qxb8 {[%clk 0:00:13]} 1-0


[Site "https://www.chess.com"]

[Event "Titled Tuesday Blitz March 14 Early 2023"]
[White "Agasarov, Benik"]
[Black "Erigaisi Arjun"]
[WhiteFideId "13314823"]
[BlackFideId "35009192"]
[WhiteElo "2179"]
[BlackElo "2737"]
[Result "0-1"]
[Round "10"]
[TimeControl "180+2"]
[Date "2023.03.14"]
[WhiteClock "0:00:04"]
[BlackClock "0:00:15"]

1. d4 {[%clk 0:03:00]}  Nf6 {[%clk 0:02:59]} 2. c4 {[%clk 0:03:00]}  e6 {[%clk 0:02:59]} 3. Nc3 {[%clk 0:03:00]}  d5 {[%clk 0:02:58]} 4. Nf3 {[%clk 0:03:00]}  a6 {[%clk 0:02:56]} 5. cxd5 {[%clk 0:02:58]}  exd5 {[%clk 0:02:57]} 6. Bg5 {[%clk 0:02:58]}  Be6 {[%clk 0:02:58]} 7. e3 {[%clk 0:02:58]}  Nbd7 {[%clk 0:02:58]} 8. Bd3 {[%clk 0:02:58]}  Bd6 {[%clk 0:02:55]} 9. Bf4 {[%clk 0:02:55]}  Bxf4 {[%clk 0:02:54]} 10. exf4 {[%clk 0:02:55]}  Bg4 {[%clk 0:02:54]} 11. O-O {[%clk 0:02:51]}  O-O {[%clk 0:02:54]} 12. h3 {[%clk 0:02:52]}  Bxf3 {[%clk 0:02:54]} 13. Qxf3 {[%clk 0:02:53]}  c6 {[%clk 0:02:55]} 14. Rad1 {[%clk 0:02:46]}  Re8 {[%clk 0:02:52]} 15. g4 {[%clk 0:02:40]}  Nf8 {[%clk 0:02:50]} 16. f5 {[%clk 0:02:34]}  h6 {[%clk 0:02:50]} 17. Qf4 {[%clk 0:02:13]}  N6h7 {[%clk 0:02:41]} 18. Kg2 {[%clk 0:02:08]}  Qf6 {[%clk 0:02:35]} 19. Kg3 {[%clk 0:01:43]}  h5 {[%clk 0:02:28]} 20. gxh5 {[%clk 0:01:32]}  Nd7 {[%clk 0:02:04]} 21. Rfe1 {[%clk 0:01:05]}  Qh6 {[%clk 0:02:00]} 22. Qxh6 {[%clk 0:00:58]}  gxh6 {[%clk 0:02:01]} 23. h4 {[%clk 0:00:57]}  Nhf6 {[%clk 0:01:56]} 24. Be2 {[%clk 0:00:55]}  Re7 {[%clk 0:01:53]} 25. Bf3 {[%clk 0:00:53]}  Rae8 {[%clk 0:01:53]} 26. Rxe7 {[%clk 0:00:45]}  Rxe7 {[%clk 0:01:54]} 27. Kf4 {[%clk 0:00:45]}  Nb6 {[%clk 0:01:51]} 28. b3 {[%clk 0:00:42]}  Nc8 {[%clk 0:01:49]} 29. Na4 {[%clk 0:00:33]}  Nd6 {[%clk 0:01:47]} 30. Nc5 {[%clk 0:00:32]}  Kf8 {[%clk 0:01:41]} 31. Nd3 {[%clk 0:00:29]}  Nde4 {[%clk 0:01:32]} 32. Rc1 {[%clk 0:00:18]}  Nd2 {[%clk 0:01:26]} 33. Ne5 {[%clk 0:00:17]}  Nxf3 {[%clk 0:01:26]} 34. Kxf3 {[%clk 0:00:17]}  Nxh5 {[%clk 0:01:27]} 35. b4 {[%clk 0:00:14]}  Re8 {[%clk 0:01:18]} 36. a4 {[%clk 0:00:13]}  f6 {[%clk 0:01:00]} 37. Nd7+ {[%clk 0:00:12]}  Kf7 {[%clk 0:01:01]} 38. Nc5 {[%clk 0:00:13]}  Ng7 {[%clk 0:00:58]} 39. Nxb7 {[%clk 0:00:11]}  Nxf5 {[%clk 0:00:58]} 40. Kf4 {[%clk 0:00:12]}  Nxd4 {[%clk 0:00:46]} 41. Nd6+ {[%clk 0:00:11]}  Kf8 {[%clk 0:00:46]} 42. Nxe8 {[%clk 0:00:08]}  Ne2+ {[%clk 0:00:47]} 43. Ke3 {[%clk 0:00:08]}  Nxc1 {[%clk 0:00:48]} 44. Nxf6 {[%clk 0:00:08]}  Na2 {[%clk 0:00:46]} 45. Nd7+ {[%clk 0:00:07]}  Ke7 {[%clk 0:00:44]} 46. Nc5 {[%clk 0:00:02]}  Nxb4 {[%clk 0:00:44]} 47. Kd4 {[%clk 0:00:02]}  Kf6 {[%clk 0:00:28]} 48. Nd7+ {[%clk 0:00:03]}  Kf5 {[%clk 0:00:29]} 49. a5 {[%clk 0:00:03]}  Kf4 {[%clk 0:00:25]} 50. Kc5 {[%clk 0:00:02]}  Nc2 {[%clk 0:00:25]} 51. Kxc6 {[%clk 0:00:02]}  d4 {[%clk 0:00:25]} 52. Nc5 {[%clk 0:00:03]}  Kf3 {[%clk 0:00:17]} 53. Kb6 {[%clk 0:00:02]}  Nb4 {[%clk 0:00:15]} 54. Nb3 {[%clk 0:00:03]}  d3 {[%clk 0:00:15]} 55. Kc5 {[%clk 0:00:03]}  Nc2 {[%clk 0:00:15]} 56. Kc4 {[%clk 0:00:03]}  Ke2 {[%clk 0:00:14]} 57. Nc1+ {[%clk 0:00:03]}  Kxf2 {[%clk 0:00:13]} 58. Nxd3+ {[%clk 0:00:04]}  Kg3 {[%clk 0:00:13]} 59. Nc5 {[%clk 0:00:05]}  Ne3+ {[%clk 0:00:13]} 60. Kd3 {[%clk 0:00:04]}  Nd5 {[%clk 0:00:12]} 61. Nxa6 {[%clk 0:00:03]}  Kxh4 {[%clk 0:00:13]} 62. Kd4 {[%clk 0:00:03]}  Ne7 {[%clk 0:00:14]} 63. Nb4 {[%clk 0:00:02]}  Kg3 {[%clk 0:00:13]} 64. a6 {[%clk 0:00:03]}  Nc8 {[%clk 0:00:14]} 65. Nc6 {[%clk 0:00:03]}  h5 {[%clk 0:00:13]} 66. a7 {[%clk 0:00:01]}  Nxa7 {[%clk 0:00:14]} 67. Nxa7 {[%clk 0:00:02]}  h4 {[%clk 0:00:14]} 68. Nc6 {[%clk 0:00:03]}  h3 {[%clk 0:00:15]} 69. Ne7 {[%clk 0:00:03]}  h2 {[%clk 0:00:15]} 70. Nf5+ {[%clk 0:00:03]}  Kf4 {[%clk 0:00:15]} 71. Ne3 {[%clk 0:00:02]}  h1=Q {[%clk 0:00:15]} 72. Nd5+ {[%clk 0:00:03]}  Kf5 {[%clk 0:00:15]} 73. Ne3+ {[%clk 0:00:03]}  Ke6 {[%clk 0:00:15]} 74. Kd3 {[%clk 0:00:02]}  Qf3 {[%clk 0:00:15]} 75. Kd4 {[%clk 0:00:02]}  Qf4+ {[%clk 0:00:15]} 76. Kd3 {[%clk 0:00:03]}  Ke5 {[%clk 0:00:16]} 77. Nc4+ {[%clk 0:00:04]}  Kd5 {[%clk 0:00:16]} 78. Ne3+ {[%clk 0:00:04]}  Kc5 {[%clk 0:00:17]} 79. Nc2 {[%clk 0:00:04]}  Qg3+ {[%clk 0:00:14]} 80. Ne3 {[%clk 0:00:04]}  Qf3 {[%clk 0:00:15]} 0-1


[Site "https://www.chess.com"]